Cogmind - Beta 14 @@@ ROGUE MODE // 2024.09.09 @ 17:54:48 Player: rice Result: Destroyed by D-53 Grenadier with Mini Grenade Launcher Performance ------------- Evolutions (0) 0 Regions Visited (2) 400 Robots Destroyed (18) 90 Value Destroyed (475) 475 Prototype IDs (0) 0 Alien Tech Used (0) 0 Bonus (0) 0 TOTAL SCORE: 965 Bonus ------- None Cogmind --------- Core Integrity 0/250 Matter 290/300 Energy 80/100 System Corruption 1% Temperature Cool (41) Movement Walking (190) Ox1 Location -10/Mines Parts ------- > --- POWER (1) -------- (None) > --- PROPULSION (2) --- Carbon-fiber Leg Carbon-fiber Leg > --- UTILITY (2) ------ High-capacity Storage Unit Signal Interpreter > --- WEAPON (2) ------- Beamcaster > --- INVENTORY (20) --- Light Ion Engine Light Treads Light Treads Light Treads Light Treads Improved Heat Sink Structural Scanner Core Shielding Propulsion Shielding Weapon Shielding Assault Rifle Assault Rifle Grenade Launcher Mining Laser Peak State ------------ > --- POWER ------------ Light Angular Momentum Engine > --- PROPULSION ------- Carbon-fiber Leg Carbon-fiber Leg > --- UTILITY ---------- High-capacity Storage Unit Signal Interpreter > --- WEAPON ----------- Beamcaster Assault Rifle > --- INVENTORY -------- Light Ion Engine Light Treads Light Treads Light Treads Light Treads Improved Heat Sink Structural Scanner Core Shielding Propulsion Shielding Weapon Shielding Assault Rifle Assault Rifle Grenade Launcher Mining Laser [Rating: 20] Favorites ----------- Power Ion Engine Engine Ion Engine Propulsion Light Treads Treads Light Treads Leg Carbon-fiber Leg Utility Signal Interpreter Device Structural Scanner Storage High-capacity Storage Unit Processor Signal Interpreter Weapon Assault Rifle Energy Gun EM Pulse Gun Ballistic Gun Assault Rifle Launcher Grenade Launcher Special Weapon Mining Laser Build | -11 -10 -10 ------- Run | Yrd Mat Min Slots Evolved . | . . . Power . | . . . Propulsion . | . . . Utility . | . . . Weapon . | . . . Parts Attached 28 | 6 13 9 Power 3 | 1 . 2 Engine 3 | 1 . 2 Core . | . . . Reactor . | . . . Propulsion 10 | 2 4 4 Treads 7 | 2 4 1 Leg 3 | . . 3 Wheel . | . . . Hover . | . . . Flight . | . . . Utility 4 | 1 3 . Device 1 | . 1 . Storage 2 | 1 1 . Processor 1 | . 1 . Hackware . | . . . Protection . | . . . Artifact . | . . . Weapon 11 | 2 6 3 Energy Gun 2 | 1 . 1 Energy Cannon . | . . . Ballistic Gun 7 | 1 5 1 Ballistic Cannon . | . . . Launcher 1 | . 1 . Special Weapon 1 | . . 1 Impact Weapon . | . . . Slashing Weapon . | . . . Piercing Weapon . | . . . Special Melee Weapon . | . . . Unidentified Prototypes . | . . . Parts Lost 4 | . . 4 Power 2 | . . 2 Propulsion . | . . . Utility . | . . . Weapon 2 | . . 2 Highest Loss Streak 3 | . . 3 To Critical Strikes . | . . . Average Slot Usage (%) 99 | . 99 99 Engine 13 | . 14 13 Treads 25 | . 28 21 Leg 2 | . . 6 Storage 14 | . 14 14 Processor 12 | . 12 14 Ballistic Gun 25 | . 27 23 Special Weapon 1 | . . 4 Peak Build Rating 20 | 6 8 20 Average Rating 8 | 4 7 10 On Entrance 4 | . 6 8 Naked Turns . | . . . Heaviest Build 54 | 14 49 54 Greatest Support 40 | 40 40 40 Greatest Overweight (x) 3 | . 1 3 Average Overweight (x) . | . . 1 Largest Inventory Capacity 20 | 8 20 20 Average Capacity 14 | 7 10 20 Most Carried 15 | 1 11 15 Average Carried 9 | . 7 11 Final Capacity 20 | 8 20 20 Final Carried 14 | 1 11 14 Class Distribution -------------------- 100% | Mutant Dominant Class ---------------- Mutant | -10/Materials Mutant | -10/Mines Resources | -11 -10 -10 ----------- Run | Yrd Mat Min Matter Collected 767 | 223 267 277 Remotely . | . . . Salvage Created 497 | . 317 180 Parts 25 | . 19 6 Haulers Intercepted . | . . . Recyclers Shooed . | . . . Parts Field Recycled . | . . . Retrieved Matter . | . . . Parts Self-Destructed . | . . . Prevented . | . . . Kills | -11 -10 -10 ------- Run | Yrd Mat Min Combat Hostiles Destroyed 16 | . 9 7 Guns 13 | . 6 7 AOE 3 | . 3 . Classes Destroyed 5 | . 4 1 Worker 1 | . 1 . Operator 1 | . 1 . Swarmer 6 | . 3 3 Grunt 9 | . 6 3 Demolisher 1 | . . 1 Best Kill Streak 4 | . 4 3 Combat Bots Only 3 | . 3 3 Max Kills in Single Turn 2 | . 2 1 Gunslinging . | . . . Exploded 2 | . 2 . Melee . | . . . Uniques/NPCs Destroyed . | . . . Combat | -11 -10 -10 -------- Run | Yrd Mat Min Hostile Shots Fired 92 | . 37 55 Missed 18 | . 8 10 Damage Taken 1242 | . 369 873 Core 266 | . 49 217 Absorbed by Shields . | . . . Core Remaining (%) 100 | 100 . . Volleys Fired 62 | . 26 36 Largest 2 | . 2 2 Hottest 100 | . 40 100 Shots Fired 105 | . 50 55 Gun 93 | . 48 45 Cannon . | . . . Launcher 2 | . 2 . Special 10 | . . 10 Kinetic 87 | . 48 39 Thermal 16 | . . 16 Explosive 2 | . 2 . Electromagnetic . | . . . Robot Hit Streak 11 | . 11 7 Robot Miss Streak 3 | . 2 3 Penetration Max . | . . . Secondary Targets 1 | . 1 . Max Gunslinging Chain 1 | . 1 . Shots Hit Robots 65 | . 36 29 Core Hits 31 | . 20 11 Critical Kills . | . . . Critical Parts Destroyed . | . . . Critical Strikes 1 | . . 1 Burn 1 | . . 1 Melee Attacks . | . . . Impact . | . . . Slashing . | . . . Piercing . | . . . Sneak Attacks . | . . . Combat Hostiles . | . . . Follow-up Attacks . | . . . Damage Inflicted 1014 | . 601 413 Guns 837 | . 436 401 Cannons . | . . . Explosions 165 | . 165 . Melee . | . . . Ramming 12 | . . 12 Kinetic 733 | . 436 297 Thermal 104 | . . 104 Explosive 165 | . 165 . Electromagnetic . | . . . Impact . | . . . Slashing . | . . . Piercing . | . . . Highest Corruption 1 | . 1 1 Average Corruption 1 | . 1 1 Corruption Purged . | . . . Corruption Blocked . | . . . Effects 17 | . 13 4 Message Errors 6 | . 3 3 Matter Fused 6 | . 6 . Heat Flow Errors 1 | . 1 . Energy Discharges 1 | . 1 . Parts Rejected 1 | . 1 . Data Loss (major) 1 | . . 1 Alerts 1 | . 1 . Overload Shots . | . . . Overflow Damage 25 | . 25 . Projectiles . | . . . Explosions 25 | . 25 . Melee . | . . . Knockbacks . | . . . Impact . | . . . Kinetic . | . . . Secondary . | . . . Self-Inflicted Damage . | . . . Shots . | . . . Rammed . | . . . Targets Rammed 1 | . . 1 Kicked 1 | . . 1 Crushed . | . . . Highest Temperature 191 | . 108 191 Average Temperature 45 | . 25 49 Received Heat Transfer 336 | . 165 171 Siege Activations . | . . . Robots Corrupted . | . . . Combat Hostiles . | . . . Parts Fried . | . . . Impact Corruptions . | . . . Robots Melted . | . . . Combat Hostiles . | . . . Parts Melted . | . . . Heat Transferred 259 | . . 259 Parts Sabotaged . | . . . Parts Stolen . | . . . Parts Stripped . | . . . Power Chain Reactions . | . . . Alert | -11 -10 -10 ------- Run | Yrd Mat Min Peak Influence 188 | . 188 77 Initial . | . . . Average 38 | . 48 28 Maximum Alert Level . | . . . Low Security (%) 100 | 100 100 100 Level 1 . | . . . Level 2 . | . . . Level 3 . | . . . Level 4 . | . . . Level 5 . | . . . High Security . | . . . Max Security . | . . . Squads Dispatched 2 | . 2 . Investigation 1 | . 1 . Extermination . | . . . Reinforcement 1 | . 1 . Assault . | . . . Garrison . | . . . Intercept . | . . . Searches Triggered . | . . . Construction Impeded . | . . . Haulers Reinforced . | . . . Active Scanning Responses . | . . . Cargo Convoy Interrupts . | . . . Stealth | -11 -10 -10 --------- Run | Yrd Mat Min Distress Signals 1 | . 1 . Communications Jammed . | . . . Distress Signals . | . . . Times Spotted 27 | . 18 9 Peak Tracking Total 3 | . 3 3 Tactical Retreats 1 | . . 1 Traps | -11 -10 -10 ------- Run | Yrd Mat Min Traps Triggered 2 | . 2 . Indirectly . | . . . Trap Hack Attempts . | . . . Triggered . | . . . Disarmed . | . . . Reprogrammed . | . . . Reused . | . . . Traps Extracted . | . . . Installed . | . . . Triggered . | . . . Machines | -11 -10 -10 ---------- Run | Yrd Mat Min Machines Disabled . | . . . Max in Single Turn . | . . . Machines Repaired . | . . . Machines Dismantled . | . . . Machines Sabotaged . | . . . Overloaded Fab Kills . | . . . Hacking | -11 -10 -10 --------- Run | Yrd Mat Min Machines Accessed 6 | . 6 . Terminals 5 | . 5 . Fabricators . | . . . Repair Stations . | . . . Recycling Units 1 | . 1 . Scanalyzers . | . . . Garrison Access . | . . . Total Hacks 16 | . 16 . Successful 8 | . 8 . Failed 8 | . 8 . Catastrophic 1 | . 1 . Database Lockouts . | . . . Manual 15 | . 15 . Terminals 15 | . 15 . Fabricators . | . . . Repair Stations . | . . . Recycling Units 1 | . 1 . Scanalyzers . | . . . Garrison Access . | . . . Terminal Hacks 1 | . 1 . Hauler Manifests 1 | . 1 . Fabricator Hacks . | . . . Repair Station Hacks . | . . . Recycling Unit Hacks 1 | . 1 . Report Inventory 1 | . 1 . Scanalyzer . | . . . Garrison Access Hacks . | . . . Unauthorized Hacks 6 | . 6 . Terminals 6 | . 6 . Assimilate 1 | . 1 . Botnet 5 | . 5 . Fabricators . | . . . Repair Stations . | . . . Recycling Units . | . . . Scanalyzers . | . . . Garrison Access . | . . . Data Cores Recovered . | . . . Used . | . . . Hacking Detections 4 | . 4 . Full Trace Events . | . . . Feedback Events . | . . . Feedback Blocked . | . . . Robot Schematics Acquired . | . . . Robots Built . | . . . Authchips . | . . . Time . | . . . Total Robot Build Rating . | . . . Part Schematics Acquired . | . . . Parts Built . | . . . Authchips . | . . . Time . | . . . Total Part Build Rating . | . . . Parts Repaired . | . . . Time . | . . . Parts Recycled . | . . . Recycled Matter . | . . . Retrieved Matter . | . . . Retrieved Components . | . . . Parts Scanalyzed . | . . . Part Schematics Acquired . | . . . Parts Damaged . | . . . Bothacking | -11 -10 -10 ------------ Run | Yrd Mat Min Used RIF Installer . | . . . Robots Hacked . | . . . Non-combat . | . . . Combat . | . . . Robot Hacks Applied . | . . . Relay Couplers Released . | . . . Fabnet Peak Effective % . | . . . Robots Rewired . | . . . Allies Hacked . | . . . Hacks Repelled . | . . . Allies | -11 -10 -10 -------- Run | Yrd Mat Min Total Allies . | . . . Largest Group . | . . . Highest-Rated Group . | . . . Highest-Rated Ally . | . . . Total Orders . | . . . Ally Attacks . | . . . Total Damage . | . . . Kills . | . . . Allies Corrupted . | . . . Allies Melted . | . . . Intel | -11 -10 -10 ------- Run | Yrd Mat Min Robot Analysis Total . | . . . Derelict Logs Recovered 1 | . . 1 Drone Launches . | . . . Drone Recoveries . | . . . Exploration | -11 -10 -10 ------------- Run | Yrd Mat Min Turns Passed 2350 | 77 1288 985 Spaces Moved 1064 | 48 653 363 Core 8 | 8 . . Treads 957 | 40 653 264 Legs 99 | . . 99 Wheels . | . . . Hover . | . . . Flight . | . . . Fastest Speed 50 | 50 160 190 Average Speed 189 | 141 172 226 Slowest Speed 330 | 160 240 330 Overloaded Moves . | . . . Propulsion Burnouts . | . . . Robots Hopped . | . . . Cave-ins Triggered . | . . . Exploration Rate (%) 45 | 4 64 69 Regions Visited 2 Branch Regions 1 Pre-discovered Areas 1 | . . 1 Known Exits Taken 1 | . 1 . Unknown Exits Taken 1 | 1 . . Scrap Searched 1 | . . 1 Spaces Dug 9 | . . 9 Terrain Destroyed 25 | . 16 9 Melee . | . . . Projectile 9 | . . 9 AOE 16 | . 16 . Terrain Rammed . | . . . Walls Destroyed . | . . . Machines Disabled . | . . . Actions | -11 -10 -10 --------- Run | Yrd Mat Min Total 1266 | 54 766 446 Wait 93 | . 58 35 Move 1062 | 47 652 363 Hop . | . . . Pick Up 15 | 1 12 2 Fast Attach 8 | 6 2 . Attach 2 | . . 2 Detach . | . . . Swap 18 | . 11 7 Drop 5 | . 5 . Fire 62 | . 26 36 Melee . | . . . Ram . | . . . Kick 1 | . . 1 Crush . | . . . Escape Stasis . | . . . Rewire . | . . . Trap . | . . . Miscellaneous . | . . . Route ------- -11/Scrapyard -10/Materials (discovered 2 exits: *Mat / *Min) -10/Mines History --------- Turn | Location | Event 10 | -11/Scrapyard | Discovered new exit (range 15) 78 | -11/Scrapyard | Entered Materials 311 | -10/Materials | Build established: Mutant 769 | -10/Materials | Discovered new exit (range 16) 816 | -10/Materials | Identified exit to Materials 1208 | -10/Materials | Discovered new exit (range 9) 1364 | -10/Materials | Identified exit to Mines 1366 | -10/Materials | Entered Mines 1390 | -10/Mines | Met a Derelict bent on vengeance 1522 | -10/Mines | Assembled infested the area 1527 | -10/Mines | Assisted by a Guerilla fighting off Assembled 1742 | -10/Mines | Learned location of Storage (-7) 2065 | -10/Mines | Learned Materials terminal intel 2324 | -10/Mines | Core integrity fell below 50% 2343 | -10/Mines | Core integrity fell below 20% 2351 | -10/Mines | Destroyed by D-53 Grenadier with Mini Grenade Launcher Last Messages --------------- data lost. 02256_ Kicked R-06 Scavenger. 02321_ K-01 Serf destroyed. 02325_ Assault Rifle destroyed. 02329_ D-53 Grenadier destroyed. 02333_ The unstable cave ceiling collapses. 02334_ Assault Rifle destroyed. 02335_ U-05 Engineer builds a Wall. 02336_ The unstable cave ceiling collapses. 02339_ U-05 Engineer builds a Wall. 02339_ D-53 Grenadier suffers critical hit (Burn). 02340_ The unstable cave ceiling collapses. 02342_ D-53 Grenadier heat damages Launcher Guidance Computer. 02343_ The unstable cave ceiling collapses. 02343_ U-05 Engineer builds a Wall. 02344_ The unstable cave ceiling collapses. 02347_ U-05 Engineer builds a Wall. 02349_ Lgt. Angular Momentum Engine destroyed. Map ----- +----------------------------------------------------+ | ##??????????## ##??# #??????????????????? | | ##????????## #### ##?????????????###### | | """ #???????## ## ##??????????????# | | """ ##??????# #???????????????# """" | | """ ##?????# #???????????????# """" | | ####??## ## ##??????????????# """" | | ## ##??## #### #############??# | | #### #???## ##??## #??# | | ##???# ####### #????################ #??# [= | | ????## #???????????????????# #??# | | ????# ######## #???????????????????# #####!### | | ????# ##???#### ##??????????????????# #?? | | ????# #????# #??????????????????####### #?? | | #???## ##????# #??????????????????####### #?? | | #????## #?????# #??????????????????# % #?? | | #?????# #?????# #??????????????????# ##### #?? | | #?????# #?????# #???????????####???# #???# ### | | #?????# #?????# #?????????### ##??# #???# | | #?????# #?????### ###???????### #### #???#### | | ##????# #????#### #????????## #?###### | | ##???# #????# #?????#### #########?# | | ##### ##???# ####?????# ##?????????# #### | | ##### #???????## ##??????????# #??# | | ##### #??????## #########????# #??# | | ###???# #######????### ##### ###### #?? | | #?????# !#??????????# @ #??# #?? | | ??????# !#?????????## ## | | #?????# [#?????????# | | ####### ######????# # """ | | = % #????# #u """ # | | %###### #### #??### #d t """ #### # | | #????# ### #?## ##??# # | | #????# ## #?# #???## # | | ##????## ### % ### #????## # | | #??????# ## ##?## ##?????? # | | #?????## #### ##???## ##???????# ## | | #?????# #?### ##?????#####?????????###? | | ??????# #???## #???????????????????????? | | ??????# """ #????# #???????????????????????? | | ??????## """ #????# #???????????????????????? | | ???????## """ ##???? #???????????????????????? | | ????????## ##?????###???????????????????????? | | ?????????## ##????????????????????????????????? | | ??????????#### #?????????????????????????????????? | | ?????????????# #?????????????????????????????????? | | ?????????##### #?????????????????????????????????? | | ?????????# #?????????????????????????????????? | | ?????????# #####?????????????????????????????????? | | ?????????# ??????????????????????????????????????? | | ?????????#???????????????????????????????????????? | +----------------------------------------------------+ Best States ------------- Heat Dissipation 25 Energy Generation 18 Energy Capacity 250 Matter Stores 300 Matter Capacity 300 Sight Range 16 Terrain Scan Density 10 Evasion (%) 40 Recoil Reduction 2 Item Schematics ----------------- None Robot Schematics ------------------ None Fabricated ------------ Nothing Alien Tech Used ----------------- None Achievements -------------- Quantum Hacking Challenges ------------ None Game ------ Seed WardroneZioniteDerivative Manual? 0 Play Time 00:14:22 Cumulative 22.7 hours Start 2024.09.09 @ 17:36:32 End 2024.09.09 @ 17:54:48 Sessions 1 Manual Loads 0 Difficulty Rogue Special Mode None Game No. 47 Rogue 47 Adventurer 0 Explorer 0 Win Type - Total 0 Types 0/0/0/0/0/0/0/0/0 Lore% 7 Gallery% 24 Achievement% 22 Wizard Run 0 Options --------- Layout 1 ASCII 0 Keyboard 1 Movement Numpad Keybinds 0 Fullscreen 1 Font 24/Smallcaps Map View 50x35 Zoom Use 0% Tactical HUD 1 Map Filters NONE Filters NONE Steam 1 RUN: a5f189c9-2ba8-4b8b-9fcc-d158360e1513